bitfinex/quotes_BTCUSD_20240731
["timestamp","ask_amount","ask_price","bid_price","bid_amount"]
[1722437793025,0.01527909,66470.0,66469.0,0.00725878]
[1722437793444,0.01527909,66470.0,66469.0,0.15770478]
[1722437793661,0.01527909,66470.0,66469.0,0.00725878]
[1722437793859,0.01527909,66470.0,66468.0,0.150447]
[1722437794070,0.01527909,66470.0,66469.0,0.00725878]
[1722437794268,0.01650336,66470.0,66469.0,0.15770478]
[1722437794408,0.01527909,66470.0,66469.0,0.15770478]
[1722437795468,0.02360941,66471.0,66469.0,0.15770478]
[1722437795741,0.01591363,66470.0,66469.0,0.15770478]
[1722437796576,0.01591363,66470.0,66469.0,0.00725878]
[1722437796773,0.01591363,66470.0,66469.0,0.15770478]
[1722437797905,0.01591363,66470.0,66469.0,0.00725878]
[1722437798104,0.01689512,66470.0,66469.0,0.15770478]
[1722437798291,0.01591363,66470.0,66468.0,0.150447]
[1722437798490,0.01591363,66470.0,66466.0,0.300904]
[1722437798491,0.08946611,66472.0,66469.0,0.15770378]
[1722437798848,0.26226964,66473.0,66469.0,0.15770378]
[1722437798849,0.10530997,66471.0,66469.0,0.15770378]
[1722437799002,0.01730667,66470.0,66469.0,0.15770378]
[1722437799349,0.01658247,66470.0,66469.0,0.15770378]
[1722437799712,0.01766933,66470.0,66469.0,0.15770378]
[1722437800533,0.01766933,66470.0,66469.0,0.46359578]
[1722437800692,0.01658247,66470.0,66469.0,0.46359578]
[1722437801451,0.0401917,66470.0,66469.0,0.46359578]
[1722437801831,0.01658247,66470.0,66469.0,0.16270378]
[1722437802071,0.00083,66470.0,66469.0,0.16270378]
[1722437802843,0.01656799,66470.0,66469.0,0.16270378]
[1722437803428,0.01656799,66470.0,66469.0,0.01225878]
[1722437803651,0.01656799,66470.0,66469.0,0.16270478]
[1722437805283,0.02443926,66470.0,66469.0,0.16270478]
[1722437805504,0.04020735,66470.0,66469.0,0.16270478]
[1722437805700,0.01659809,66470.0,66469.0,0.16270478]
[1722437805914,0.01804959,66470.0,66469.0,0.16270478]
[1722437806538,0.01804959,66470.0,66469.0,0.46359678]
[1722437806710,0.01659809,66470.0,66469.0,0.46359678]
[1722437807247,0.01796688,66470.0,66469.0,0.16270478]
[1722437807612,0.01659809,66470.0,66469.0,0.46359678]
[1722437808239,0.01659809,66470.0,66469.0,0.16270478]
[1722437808470,0.0176629,66470.0,66469.0,0.16270478]
[1722437808878,0.01659809,66470.0,66469.0,0.16270478]
[1722437809004,0.01778518,66470.0,66469.0,0.16270478]
[1722437809227,0.15235441,66470.0,66469.0,0.16270478]
[1722437809422,0.01659809,66470.0,66469.0,0.16270478]
[1722437809650,0.01815229,66470.0,66469.0,0.01225878]
[1722437810051,0.01659809,66470.0,66469.0,0.16270478]
[1722437811023,0.04020779,66470.0,66469.0,0.16270478]
[1722437811434,0.04020779,66470.0,66469.0,0.46359678]
[1722437811850,0.03993884,66470.0,66469.0,0.46359678]
[1722437812056,0.03993884,66470.0,66469.0,0.16270478]
[1722437812469,0.03993884,66470.0,66469.0,1.37381016]
[1722437812706,0.13661085,66470.0,66469.0,1.29018078]
[1722437812929,0.0244397,66470.0,66469.0,1.29018078]
[1722437813168,0.0244397,66470.0,66469.0,0.90298878]
[1722437813529,0.0244397,66470.0,66469.0,1.20388078]
[1722437814895,0.0244397,66470.0,66469.0,0.90298878]
[1722437815835,0.0244397,66470.0,66469.0,1.20388078]
[1722437816614,0.0244397,66470.0,66469.0,0.90298878]
[1722437817026,0.0244397,66470.0,66469.0,1.20388078]
[1722437817448,0.0244397,66470.0,66469.0,0.90298878]
[1722437817653,0.0244397,66470.0,66469.0,1.21588078]
[1722437817873,0.0244397,66470.0,66469.0,1.51454398]
[1722437818083,0.0244397,66470.0,66469.0,1.83843598]
[1722437818084,0.00083,66470.0,66469.0,1.83843598]
[1722437818491,0.00083,66470.0,66469.0,1.9634866]
[1722437820815,0.00083,66470.0,66469.0,1.83437512]
[1722437821013,0.00083,66470.0,66469.0,1.7093245]
[1722437822900,0.00083,66470.0,66469.0,1.4084325]
[1722437823514,0.00083,66470.0,66469.0,1.7093245]
[1722437823710,0.00083,66470.0,66469.0,1.6893245]
[1722437823919,0.00083,66470.0,66469.0,1.7093245]
[1722437824123,0.02443301,66470.0,66469.0,1.7093245]
[1722437824547,0.00083,66470.0,66469.0,1.4084325]
[1722437824958,0.00083,66470.0,66469.0,1.7093245]
[1722437825515,0.00083,66470.0,66469.0,1.20388078]
[1722437827718,0.02443317,66470.0,66469.0,1.20388078]
[1722437828131,0.02443317,66470.0,66469.0,0.98928878]
[1722437828332,0.02443317,66470.0,66469.0,0.90298878]
[1722437829097,0.00083,66470.0,66469.0,0.90298878]
[1722437829407,0.00083,66470.0,66469.0,0.15075878]
[1722437829622,0.00083,66470.0,66469.0,0.16270478]
[1722437829825,0.00083,66470.0,66469.0,0.46359678]
[1722437830228,0.00083,66470.0,66469.0,0.01225878]
[1722437830229,0.5319864,66470.0,66469.0,0.01225878]
[1722437830506,0.6182864,66470.0,66469.0,0.005]
[1722437830696,0.9191734,66470.0,66469.0,0.005]
[1722437830936,0.9207276,66470.0,66469.0,0.005]
[1722437831112,0.9191734,66470.0,66469.0,0.005]
[1722437831345,0.8328734,66470.0,66469.0,0.005]
[1722437831547,0.2326536,66470.0,66469.0,0.005]
[1722437831749,0.5335406,66470.0,66469.0,0.005]
[1722437831959,0.8344276,66470.0,66469.0,0.005]
[1722437832378,0.150451,66467.0,66464.0,0.000913]
[1722437832580,0.0015542,66466.0,66464.0,0.000913]
[1722437832725,0.0015542,66466.0,66465.0,0.00809741]
[1722437832924,0.150452,66467.0,66465.0,0.00809741]
[1722437833330,0.1520062,66466.0,66465.0,0.00809741]
[1722437833541,0.26544918,66466.0,66465.0,0.00809741]
[1722437833728,0.11499718,66466.0,66464.0,0.000913]
[1722437833919,0.41590218,66466.0,66465.0,0.00810484]
[1722437834097,0.26389498,66466.0,66465.0,0.00810484]
[1722437834344,0.26389498,66466.0,66464.0,0.003913]
[1722437834345,0.11344298,66466.0,66464.0,0.003913]
[1722437834560,0.23411493,66465.0,66464.0,0.003913]
[1722437835116,0.23256073,66465.0,66464.0,0.003913]
[1722437835447,0.53347073,66465.0,66464.0,0.000913]
[1722437835649,0.83438073,66465.0,66464.0,0.000913]
[1722437835866,0.53347073,66465.0,66464.0,0.000913]
[1722437836080,0.62315268,66465.0,66464.0,0.000913]
[1722437836336,0.62315878,66465.0,66464.0,0.000913]
[1722437836480,0.65590771,66465.0,66464.0,0.006913]
[1722437836670,0.54380527,66465.0,66464.0,0.006913]
[1722437837265,0.54297484,66465.0,66464.0,0.000913]
[1722437837474,0.54297484,66465.0,66464.0,0.003913]
[1722437838839,0.84388484,66465.0,66464.0,0.000913]
[1722437839006,0.84388484,66465.0,66464.0,0.003913]
[1722437839207,0.55181955,66465.0,66464.0,0.003913]
[1722437839878,0.85272955,66465.0,66464.0,0.003913]
[1722437840281,0.96478782,66465.0,66464.0,0.003913]
[1722437840610,0.66393401,66465.0,66464.0,0.003913]
[1722437840816,0.96484401,66465.0,66464.0,0.003913]
[1722437842123,1.26575401,66465.0,66464.0,0.003913]
[1722437843805,1.26545342,66465.0,66464.0,0.003913]
[1722437844648,1.26543424,66465.0,66464.0,0.003913]
[1722437844853,1.15346558,66465.0,66464.0,0.003913]
[1722437845179,1.28902711,66465.0,66464.0,0.003913]
[1722437845636,1.28902711,66465.0,66464.0,0.000913]
[1722437845899,1.29402711,66465.0,66464.0,0.000913]
[1722437846236,1.26541549,66465.0,66464.0,0.000913]
[1722437846695,1.27541549,66465.0,66464.0,0.001913]
[1722437846853,1.16346374,66465.0,66464.0,0.001913]
[1722437847065,1.27538505,66465.0,66464.0,0.001913]
[1722437847287,1.15413544,66465.0,66464.0,0.001913]
[1722437849614,0.16929971,66465.0,66464.0,0.001913]
[1722437849809,0.48497725,66465.0,66464.0,0.066213]
[1722437850010,0.18406725,66465.0,66464.0,0.066213]
[1722437850413,0.78588725,66465.0,66464.0,0.07441919]
[1722437850611,1.21656245,66465.0,66464.0,0.001913]
[1722437850861,1.1929502,66465.0,66464.0,0.001913]
[1722437851711,0.160455,66465.0,66464.0,0.001913]
[1722437851912,0.01,66465.0,66464.0,0.001913]
[1722437852179,0.01,66465.0,66464.0,0.22327128]
[1722437852412,0.01,66465.0,66464.0,0.89520685]
[1722437852635,0.01,66465.0,66464.0,0.90039928]
[1722437852837,0.01,66465.0,66464.0,1.20131328]
[1722437853038,0.01,66465.0,66464.0,0.90039928]
[1722437854316,0.01,66465.0,66464.0,1.20131328]
[1722437854519,0.00083,66470.0,66469.0,0.451338]
[1722437854977,0.00083,66470.0,66469.0,0.4565168]
[1722437855186,0.00083,66470.0,66469.0,0.7574088]
[1722437855389,0.02443727,66470.0,66469.0,0.7574088]
[1722437856025,0.00083,66470.0,66469.0,0.4565168]
[1722437856423,0.00883,66470.0,66469.0,0.4575168]
[1722437856541,0.00883,66470.0,66469.0,0.7584088]
[1722437856742,0.00883,66470.0,66469.0,0.4575168]
[1722437857166,0.00883,66470.0,66469.0,1.37593518]
[1722437857368,0.00883,66470.0,66469.0,1.8583789]
[1722437857757,0.00083,66470.0,66469.0,1.8803789]
[1722437858184,0.00083,66470.0,66469.0,1.8853789]
[1722437858606,0.00083,66470.0,66469.0,1.79564452]
[1722437859348,0.00083,66470.0,66469.0,1.70944452]
[1722437859349,0.02443242,66470.0,66469.0,1.70944452]
[1722437859759,0.02443242,66470.0,66469.0,1.67744452]
[1722437859760,0.00083,66470.0,66469.0,1.67744452]
[1722437860168,0.00083,66470.0,66469.0,1.68744452]
[1722437860749,0.00083,66470.0,66469.0,1.68944452]
[1722437861164,0.00083,66470.0,66469.0,1.5168928]
[1722437861368,0.00083,66470.0,66469.0,1.5148928]
[1722437862444,0.00083,66470.0,66469.0,1.5048928]
[1722437863370,0.02443323,66470.0,66469.0,1.5048928]
[1722437863521,0.02443323,66470.0,66469.0,1.5148928]
[1722437865193,0.00907236,66489.0,66488.0,0.831715]
[1722437865389,0.0643,66506.0,66488.0,1.042718]
[1722437865390,0.0893286,66497.0,66488.0,1.042718]
[1722437865594,0.0893286,66499.0,66498.0,0.30076]
[1722437865771,0.59894472,66507.0,66500.0,0.300751]
[1722437865977,0.05742287,66506.0,66501.0,0.300744]
[1722437866180,0.00897891,66508.0,66501.0,0.00851562]
[1722437866441,0.0646,66510.0,66501.0,0.00851562]
[1722437866561,0.0646,66510.0,66500.0,0.0494]
[1722437866562,0.00896453,66509.0,66500.0,0.0494]
[1722437866765,0.300697,66513.0,66510.0,0.150353]
[1722437866766,0.06699259,66511.0,66510.0,0.150353]
[1722437866978,0.06699259,66513.0,66512.0,0.150348]
[1722437867173,0.066,66518.0,66513.0,0.451039]
[1722437867174,0.06699259,66514.0,66513.0,0.451039]
[1722437867378,0.00889894,66523.0,66512.0,0.0084485]
[1722437867604,0.07547259,66524.0,66513.0,0.00844676]
[1722437867805,0.00848,66524.0,66510.0,0.0758]
[1722437868005,0.1962673,66523.0,66518.0,0.150334]
[1722437868206,0.1962673,66523.0,66517.0,0.300673]
[1722437868207,0.0172819,66524.0,66517.0,0.300673]
[1722437868412,0.00848,66524.0,66521.0,0.150327]
[1722437868608,0.00848,66524.0,66522.0,0.150325]
[1722437868786,0.00848,66524.0,66522.0,0.14758249]
[1722437869797,0.01148,66524.0,66522.0,0.00825749]
[1722437870006,0.150323,66523.0,66522.0,0.00825749]
[1722437870231,0.751617,66523.0,66522.0,0.00825749]
[1722437870464,0.150338,66517.0,66512.0,0.150348]
[1722437870647,0.150337,66517.0,66512.0,0.150347]
[1722437870849,0.150337,66517.0,66513.0,0.00826038]
[1722437871060,0.300664,66520.0,66513.0,0.15860638]
[1722437871312,0.150333,66519.0,66514.0,0.150343]
[1722437871561,0.150333,66519.0,66515.0,0.150341]
[1722437871803,0.150333,66519.0,66515.0,0.1585979]
[1722437872006,0.0827,66521.0,66517.0,0.150336]
[1722437872233,0.300662,66520.0,66515.0,0.0082569]
[1722437872440,0.150331,66520.0,66518.0,0.00825167]
[1722437872675,0.150331,66520.0,66515.0,0.150341]
[1722437872884,0.0652,66522.0,66516.0,0.300678]
[1722437873086,0.00848,66524.0,66523.0,0.45097]
[1722437873324,0.00848,66524.0,66523.0,0.830517]
[1722437873548,0.00848,66524.0,66523.0,1.13941362]
[1722437873967,0.00848,66524.0,66523.0,0.83876662]
[1722437874148,0.00848,66524.0,66523.0,1.13941362]
[1722437875105,0.00848,66524.0,66523.0,1.14041362]
[1722437876333,0.00848,66524.0,66523.0,1.13941362]
[1722437876749,0.00848,66524.0,66523.0,1.14541362]
[1722437877715,0.03206695,66524.0,66523.0,1.14541362]
[1722437877919,0.03206695,66524.0,66523.0,1.15741362]
[1722437878533,0.03206695,66524.0,66523.0,1.341352]
[1722437879578,0.03206695,66524.0,66523.0,1.53416062]
[1722437879792,0.03206695,66524.0,66523.0,1.72871234]
[1722437880005,0.03206695,66524.0,66523.0,1.69671234]
[1722437880522,0.03206695,66524.0,66523.0,1.22351362]
[1722437881301,0.03206695,66524.0,66523.0,0.92286662]
[1722437881522,0.00848,66524.0,66523.0,1.22351362]
[1722437882547,0.00848,66524.0,66523.0,0.92286662]
[1722437882964,0.00848,66524.0,66523.0,1.22351362]
[1722437883170,0.00848,66524.0,66523.0,0.92286662]
[1722437884428,0.00848,66524.0,66523.0,1.22351362]
[1722437885068,0.0320665,66524.0,66523.0,1.22351362]
[1722437885274,0.0320665,66524.0,66523.0,1.37299492]
[1722437885913,0.0320665,66524.0,66523.0,1.87819364]
[1722437886100,0.00848,66524.0,66523.0,1.87819364]
[1722437886430,0.00848,66524.0,66523.0,1.97819364]
[1722437886884,0.00848,66524.0,66523.0,2.27884064]
[1722437887084,0.00848,66524.0,66523.0,2.55648834]
[1722437887599,0.00848,66524.0,66523.0,2.56948834]
[1722437887808,0.00848,66524.0,66523.0,2.56946562]
[1722437888165,0.00848,66524.0,66523.0,2.59654978]
[1722437888370,0.00848,66524.0,66523.0,2.55746562]
[1722437888570,0.00848,66524.0,66523.0,2.57146562]
[1722437888779,0.00848,66524.0,66523.0,2.55846562]
[1722437888985,0.00848,66524.0,66523.0,2.54446562]
[1722437889169,0.03206242,66524.0,66523.0,2.54446562]
[1722437889369,0.00901755,66524.0,66523.0,2.55846562]
[1722437889619,0.00848,66532.0,66528.0,0.032]
[1722437889971,0.00848,66532.0,66528.0,2.40514649]
[1722437890150,0.00848,66532.0,66528.0,2.50514649]
[1722437890783,0.00848,66532.0,66528.0,2.20452149]
[1722437890961,0.00848,66532.0,66528.0,2.21551454]
[1722437892381,0.00848,66532.0,66528.0,2.20151454]
[1722437892636,0.00848,66532.0,66528.0,2.36021454]
[1722437892842,0.05347,66537.0,66536.0,0.032]
[1722437892969,0.05347,66537.0,66536.0,2.33931396]
[1722437893175,0.0015542,66552.0,66536.0,2.33931396]
[1722437893176,0.0015542,66552.0,66551.0,0.032]
[1722437893409,0.44858472,66568.0,66551.0,0.032]
[1722437893410,0.44858472,66568.0,66562.0,0.831377]
[1722437893630,0.44858472,66568.0,66562.0,0.95625712]
[1722437893830,0.00133,66569.0,66562.0,0.96518082]
[1722437894034,0.06233,66569.0,66562.0,0.7601007]
[1722437894251,0.0320423,66563.0,66562.0,0.4596297]
[1722437894464,0.0320423,66563.0,66562.0,0.7601007]
[1722437894666,0.00847,66563.0,66562.0,0.7601007]
[1722437895088,0.00847,66563.0,66562.0,0.4726297]
[1722437895288,0.00847,66563.0,66562.0,0.85041167]
[1722437895845,0.00847,66563.0,66562.0,0.86441167]
[1722437896426,0.00847,66563.0,66562.0,0.85041167]
[1722437896627,0.00847,66563.0,66562.0,0.7871007]
[1722437898044,0.03204395,66563.0,66562.0,0.7871007]
[1722437898271,0.00847,66563.0,66562.0,0.7871007]
[1722437898841,0.00847,66563.0,66562.0,0.4866297]
[1722437899401,0.00847,66563.0,66562.0,0.1861587]
[1722437899581,0.00847,66563.0,66562.0,0.4866297]
[1722437899791,0.00847,66563.0,66562.0,0.7871007]
[1722437900018,0.00847,66563.0,66562.0,0.4866297]
[1722437901061,0.00847,66563.0,66562.0,0.7871007]
[1722437901384,0.00847,66563.0,66562.0,0.4866297]
[1722437901581,0.00847,66563.0,66562.0,0.7871007]
[1722437901828,0.03204395,66563.0,66562.0,0.7871007]
[1722437902057,0.03204395,66563.0,66562.0,0.4866297]
[1722437902427,0.03204395,66563.0,66562.0,0.1861587]
[1722437902646,0.03204395,66563.0,66562.0,0.4866297]
[1722437902847,0.03204395,66563.0,66562.0,0.0359237]
[1722437903041,0.03204395,66563.0,66562.0,0.1861587]
[1722437903250,0.03204395,66563.0,66562.0,0.4866297]
[1722437903890,0.03204395,66563.0,66562.0,0.4726297]
[1722437904088,0.03204395,66563.0,66562.0,0.4596297]
[1722437904237,0.03204395,66563.0,66562.0,0.4616297]
[1722437904653,0.03204395,66563.0,66562.0,0.1611587]
[1722437905252,0.03204395,66563.0,66562.0,0.0189237]
[1722437905714,0.00847,66563.0,66562.0,0.0189237]
[1722437906497,0.158703,66563.0,66562.0,0.0189237]
[1722437906876,0.158703,66563.0,66562.0,0.01]
[1722437907085,0.45917,66563.0,66562.0,0.01]
[1722437907278,0.45917,66563.0,66562.0,0.01883882]
[1722437907624,0.158703,66563.0,66562.0,0.01]
[1722437908494,0.00847,66563.0,66562.0,0.01]
[1722437908708,0.4607242,66563.0,66562.0,0.01883882]
[1722437908917,0.00847,66563.0,66562.0,0.01883882]
[1722437909114,0.158703,66563.0,66562.0,0.01]
[1722437909327,0.45917,66563.0,66562.0,0.01883882]
[1722437909735,0.45917,66563.0,66562.0,0.01]
[1722437910098,0.158703,66563.0,66562.0,0.01]
[1722437910304,0.18227765,66563.0,66562.0,0.01]
[1722437910503,0.18227765,66563.0,66562.0,0.01883882]
[1722437910504,0.18383185,66563.0,66562.0,0.01883882]
[1722437910714,0.18227765,66563.0,66562.0,0.01883882]
[1722437911125,0.00847,66563.0,66562.0,0.01883882]
[1722437911980,0.0100242,66563.0,66562.0,0.01883882]
[1722437912409,0.4607242,66563.0,66562.0,0.01883882]
[1722437912583,0.45917,66563.0,66562.0,0.01883882]
[1722437912785,0.158703,66563.0,66562.0,0.01883882]
[1722437913365,0.0100242,66563.0,66562.0,0.01883882]
[1722437913530,0.1602572,66563.0,66562.0,0.01883882]
[1722437913911,0.158703,66563.0,66562.0,0.01883882]
[1722437914322,0.18227748,66563.0,66562.0,0.01883882]
[1722437914933,0.48274448,66563.0,66562.0,0.01883882]
[1722437915169,0.48274448,66563.0,66562.0,0.01]
[1722437915309,0.759637,66563.0,66562.0,0.01885839]
[1722437915511,0.63199165,66563.0,66562.0,0.01]
[1722437915724,1.22995865,66563.0,66562.0,0.01]
[1722437916142,1.31492565,66563.0,66562.0,0.01]
[1722437916348,0.60707,66563.0,66562.0,0.01]
[1722437916755,0.60707,66563.0,66562.0,0.01742852]
[1722437916756,0.907537,66563.0,66562.0,0.01742852]
[1722437916970,0.907537,66563.0,66562.0,0.008]
[1722437917367,0.908537,66563.0,66562.0,0.009]
[1722437917585,0.908537,66563.0,66562.0,0.001]
[1722437917789,1.209004,66563.0,66562.0,0.001]
[1722437917986,0.910537,66563.0,66562.0,0.002]
[1722437918192,1.211004,66563.0,66562.0,0.002]
[1722437918394,0.150251,66555.0,66552.0,0.150257]
[1722437918601,0.0015542,66554.0,66552.0,0.150257]
[1722437919618,0.0015542,66554.0,66548.0,0.379433]
[1722437919619,0.0015542,66554.0,66548.0,0.0789]
[1722437919874,0.0015542,66554.0,66552.0,0.150257]
[1722437920398,0.0025542,66554.0,66552.0,0.150257]
[1722437921051,0.0025542,66554.0,66552.0,0.152257]
[1722437921994,0.0025542,66554.0,66552.0,0.002]
[1722437922428,0.0025542,66554.0,66552.0,0.152258]
[1722437922835,0.001,66554.0,66552.0,0.152258]
[1722437923064,0.00154923,66553.0,66552.0,0.152258]
[1722437923249,0.02457775,66554.0,66552.0,0.002]
[1722437923455,0.02457775,66554.0,66552.0,0.152257]
[1722437923664,0.001,66554.0,66553.0,0.150256]
[1722437924073,0.0015542,66556.0,66553.0,0.150255]
[1722437924273,0.1518032,66556.0,66553.0,0.150255]
[1722437924482,0.150249,66556.0,66552.0,0.153257]
[1722437924654,0.3093942,66559.0,66552.0,0.153257]
[1722437924860,0.3093942,66559.0,66551.0,0.300519]
[1722437924861,0.0015542,66556.0,66553.0,0.150254]
[1722437925070,0.300498,66557.0,66549.0,0.30053]
[1722437925273,0.001,66554.0,66553.0,0.002]
[1722437925471,0.001,66554.0,66553.0,0.152256]
[1722437925673,0.001,66554.0,66553.0,0.150256]
[1722437926309,0.0245771,66554.0,66553.0,0.150256]
[1722437926489,0.0235771,66554.0,66553.0,0.150256]
[1722437927130,0.0235771,66554.0,66551.0,0.450778]
[1722437927333,0.0235771,66554.0,66553.0,0.150256]
[1722437927558,0.3113942,66559.0,66553.0,0.150256]
[1722437927559,0.150248,66557.0,66553.0,0.150256]
[1722437927762,0.150248,66557.0,66553.0,0.15772131]
[1722437927935,0.1518032,66556.0,66553.0,0.15772131]
[1722437928143,0.150249,66556.0,66553.0,0.15772031]
[1722437928349,0.0015542,66555.0,66553.0,0.15772031]
[1722437928523,0.150249,66556.0,66553.0,0.15972031]
[1722437928930,0.150249,66556.0,66553.0,0.00746531]
[1722437929154,0.00100237,66555.0,66553.0,0.00746531]
[1722437929328,0.150249,66556.0,66552.0,0.150257]
[1722437929517,0.150249,66556.0,66554.0,0.00746357]
[1722437929518,0.19514572,66556.0,66554.0,0.00746357]
[1722437929706,0.0011084,66555.0,66553.0,0.00746531]
[1722437929911,0.19514572,66556.0,66555.0,0.00746183]
[1722437930307,0.0015542,66556.0,66552.0,0.150257]
[1722437930584,0.04489941,66555.0,66552.0,0.150257]
[1722437930780,0.04645361,66554.0,66553.0,0.15772131]
[1722437931007,0.04645361,66554.0,66553.0,0.00746531]
[1722437931399,0.04645361,66554.0,66553.0,0.150256]
[1722437931400,0.0015542,66554.0,66553.0,0.150256]
[1722437931709,0.08979144,66555.0,66553.0,0.15772131]
[1722437931910,0.0015542,66554.0,66553.0,0.15772131]
[1722437932115,0.08979144,66555.0,66553.0,0.15772131]
[1722437932271,0.08979144,66554.0,66553.0,0.15772131]
[1722437932479,0.1122393,66555.0,66553.0,0.15772131]
[1722437932681,0.0015542,66554.0,66553.0,0.15772131]
[1722437932883,0.11239887,66555.0,66553.0,0.15772131]
[1722437933113,0.0015542,66554.0,66553.0,0.15772131]
[1722437933329,0.11395307,66554.0,66553.0,0.15772131]
[1722437933475,0.11239887,66554.0,66553.0,0.15772131]
[1722437933676,0.11239887,66554.0,66553.0,0.16272131]
[1722437933906,0.00934934,66554.0,66553.0,0.16272131]
[1722437934102,0.28512764,66557.0,66554.0,0.150253]
[1722437934306,0.14422771,66556.0,66553.0,0.16272031]
[1722437934526,0.0235772,66554.0,66553.0,0.155255]
[1722437934818,0.00934907,66554.0,66553.0,0.155255]
[1722437935191,0.00934907,66555.0,66553.0,0.150255]
[1722437935397,0.00934907,66555.0,66554.0,0.002]
[1722437936103,0.00934824,66555.0,66554.0,0.152253]
[1722437936721,0.00934824,66555.0,66553.0,0.150255]
[1722437936932,0.00934824,66554.0,66550.0,0.150261]
[1722437937137,0.13484308,66557.0,66553.0,0.005]
[1722437937138,0.00084643,66555.0,66553.0,0.005]
[1722437937342,0.6112083,66554.0,66553.0,0.005]
[1722437937549,0.300521,66551.0,66546.0,0.15027]
[1722437937774,0.300521,66551.0,66544.0,0.5597]
[1722437937775,0.08990172,66548.0,66545.0,0.150273]
[1722437937979,0.08990172,66547.0,66546.0,0.15027]
[1722437938424,0.08990172,66547.0,66544.0,0.4771]
[1722437938655,0.086,66548.0,66544.0,0.4771]
[1722437938656,0.150274,66545.0,66544.0,0.4771]
[1722437938859,0.26265115,66545.0,66544.0,0.4771]
[1722437939075,0.150274,66545.0,66544.0,0.4771]
[1722437939272,0.15962104,66545.0,66544.0,0.4771]
[1722437939622,0.15962104,66545.0,66541.0,0.150281]
[1722437939824,0.11234538,66542.0,66541.0,0.150283]
[1722437940001,0.11234538,66542.0,66540.0,0.227085]
[1722437940205,0.09143164,66541.0,66540.0,0.527656]
[1722437940556,0.0015542,66541.0,66540.0,0.527656]
[1722437940763,0.0914276,66541.0,66540.0,0.0768]
[1722437940965,0.0898734,66541.0,66540.0,0.227085]
[1722437941170,0.0898734,66541.0,66540.0,0.527656]
[1722437941371,0.0898734,66541.0,66540.0,0.535656]
[1722437941586,0.0898734,66541.0,66540.0,0.0848]
[1722437941806,0.0898734,66541.0,66540.0,0.248085]
[1722437942216,0.0015542,66542.0,66540.0,0.248085]
[1722437942424,0.08983026,66541.0,66540.0,0.248085]
[1722437942629,0.11341031,66541.0,66540.0,0.248085]
[1722437943039,0.08983026,66541.0,66540.0,0.248085]
[1722437943245,0.08983026,66541.0,66540.0,0.0848]
[1722437943446,0.08983026,66541.0,66540.0,0.02]
[1722437943659,0.84279946,66541.0,66540.0,0.02]
[1722437943876,1.24177919,66541.0,66540.0,0.02]
[1722437944064,1.43527038,66541.0,66540.0,0.008]
[1722437944209,1.43527038,66541.0,66525.0,0.231418]
[1722437944210,0.300589,66536.0,66525.0,0.231418]
[1722437944416,0.08980637,66526.0,66525.0,0.231418]
[1722437944619,0.08980637,66527.0,66525.0,0.0811]
[1722437944820,0.06887769,66526.0,66525.0,0.0811]
[1722437945217,0.0015542,66526.0,66525.0,0.0811]
[1722437945567,0.09135811,66526.0,66525.0,0.0811]
[1722437945767,0.06732493,66526.0,66525.0,0.0811]
[1722437945976,0.06887913,66526.0,66525.0,0.0811]
[1722437946563,0.0015542,66526.0,66525.0,0.0811]
[1722437946820,0.0015542,66526.0,66525.0,0.0871]
[1722437947248,0.0015542,66526.0,66525.0,0.0811]
[1722437947408,0.0015542,66526.0,66525.0,0.0831]
[1722437947575,0.0015542,66526.0,66525.0,0.0901]
[1722437947777,0.0015542,66527.0,66525.0,0.0901]
[1722437948019,0.0015542,66527.0,66525.0,0.240418]
[1722437948225,0.0015542,66527.0,66525.0,0.0901]
[1722437948440,0.1518682,66527.0,66525.0,0.0901]
[1722437948644,0.1518682,66527.0,66525.0,0.0881]
[1722437948844,0.1518682,66527.0,66525.0,0.008]
[1722437948845,0.751585,66526.0,66525.0,0.008]
[1722437949072,0.7531392,66526.0,66525.0,0.008]
[1722437949437,0.4525052,66526.0,66525.0,0.008]
[1722437949690,0.4525052,66526.0,66525.0,0.001]
[1722437949892,0.4525052,66526.0,66525.0,0.007]
[1722437950143,0.59953566,66526.0,66525.0,0.007]
[1722437950406,0.44921866,66526.0,66519.0,0.0775]
[1722437950612,0.150326,66522.0,66518.0,0.627434]
[1722437950871,0.150326,66522.0,66518.0,0.150334]
[1722437951107,0.0015542,66523.0,66518.0,0.30067]
[1722437951312,0.0015542,66523.0,66514.0,0.0772]
[1722437951489,0.150331,66520.0,66516.0,0.150339]
[1722437951707,0.09001687,66523.0,66516.0,0.150339]
[1722437951708,0.300648,66523.0,66516.0,0.150337]
[1722437951909,0.06726118,66528.0,66518.0,0.001]
[1722437951910,0.150333,66519.0,66518.0,0.001]
[1722437952320,0.150333,66519.0,66514.0,0.227543]
[1722437952521,0.150336,66518.0,66514.0,0.227543]
[1722437953165,0.150336,66518.0,66514.0,0.0772]
[1722437953166,0.150342,66515.0,66514.0,0.0772]
[1722437953516,0.0015542,66523.0,66514.0,0.0772]
[1722437953517,0.300658,66521.0,66514.0,0.0772]
[1722437953799,0.300648,66523.0,66515.0,0.150341]
[1722437954005,0.150334,66519.0,66514.0,0.227543]
[1722437954209,0.300666,66519.0,66514.0,0.0772]
[1722437954415,0.150336,66518.0,66514.0,0.0772]
[1722437954630,0.300666,66519.0,66514.0,0.0852]
[1722437954631,0.001,66515.0,66514.0,0.0852]
[1722437954824,0.150333,66519.0,66515.0,0.150341]
[1722437956123,0.0015542,66522.0,66516.0,0.150337]
[1722437956247,0.150331,66520.0,66516.0,0.150339]
[1722437957037,0.0015542,66522.0,66517.0,0.150336]
[1722437957266,0.0015542,66522.0,66514.0,0.0772]
[1722437957470,0.150331,66520.0,66516.0,0.152339]
[1722437957685,0.150331,66520.0,66516.0,0.159339]
[1722437957903,0.150331,66520.0,66517.0,0.00776074]
[1722437958427,0.150331,66520.0,66517.0,0.01176074]
[1722437958841,0.150329,66521.0,66517.0,0.16209674]
[1722437959035,0.0015542,66522.0,66517.0,0.01176074]
[1722437959253,0.150328,66521.0,66517.0,0.16209774]
[1722437959671,0.150328,66521.0,66517.0,0.15809774]
[1722437960057,0.150328,66521.0,66517.0,0.16709774]
[1722437960335,0.2265295,66521.0,66517.0,0.16709774]
[1722437960521,0.2265295,66521.0,66517.0,0.15809774]
[1722437960736,0.2265305,66521.0,66517.0,0.15809774]